bitfinex/quotes_BTCUSD_20250523
["timestamp","ask_amount","ask_price","bid_price","bid_amount"]
[1748018696774,0.02042375,108550.0,108540.0,2.56670604]
[1748018696948,0.02963592,108550.0,108540.0,2.56670604]
[1748018697767,0.01121183,108550.0,108540.0,2.56670604]
[1748018697976,0.02963541,108550.0,108540.0,2.56670604]
[1748018698758,0.03884758,108550.0,108540.0,2.56670604]
[1748018698983,0.22309523,108550.0,108540.0,1.42587164]
[1748018699167,0.22309523,108550.0,108540.0,2.53902758]
[1748018699393,0.2046714,108550.0,108540.0,2.53902758]
[1748018699535,0.2046714,108550.0,108540.0,2.5482406]
[1748018699959,0.19545923,108550.0,108540.0,2.53902758]
[1748018700135,0.19545923,108550.0,108540.0,2.5482406]
[1748018700678,0.19545923,108550.0,108540.0,2.55745336]
[1748018701199,0.19545923,108550.0,108540.0,2.5482406]
[1748018702634,0.18947759,108550.0,108540.0,2.5492406]
[1748018703097,0.18947759,108550.0,108540.0,2.54002758]
[1748018703329,0.18947759,108550.0,108540.0,2.54924051]
[1748018703532,0.18947759,108550.0,108540.0,2.53001448]
[1748018703768,0.18947759,108550.0,108540.0,2.54844069]
[1748018704179,0.24423118,108560.0,108550.0,0.21424689]
[1748018704392,0.77811933,108580.0,108570.0,0.34921064]
[1748018704598,0.28103363,108580.0,108570.0,1.74442354]
[1748018704806,0.08762794,108580.0,108570.0,2.14442354]
[1748018705015,0.27182451,108580.0,108570.0,2.13460951]
[1748018705227,0.20261514,108580.0,108570.0,2.14342477]
[1748018705854,0.20261514,108580.0,108570.0,2.14442477]
[1748018706565,0.25340569,108580.0,108570.0,1.93293536]
[1748018707901,0.19440569,108580.0,108570.0,1.93293536]
[1748018708727,0.20361514,108580.0,108570.0,2.11714831]
[1748018708972,0.21282493,108580.0,108570.0,2.13556942]
[1748018709381,0.21282493,108580.0,108570.0,1.65685536]
[1748018709382,0.19440577,108580.0,108570.0,1.65685536]
[1748018709604,0.19440577,108580.0,108570.0,2.11714831]
[1748018709810,0.19440577,108580.0,108570.0,2.12635895]
[1748018710015,0.19440577,108580.0,108570.0,2.13556934]
[1748018710230,0.20361531,108580.0,108570.0,2.13556934]
[1748018710412,0.20361531,108580.0,108570.0,2.14477964]
[1748018710820,0.20361531,108580.0,108570.0,2.16319999]
[1748018711134,0.001,108580.0,108570.0,3.80817254]
[1748018711407,0.25342799,108610.0,108600.0,0.3729]
[1748018711575,0.2631421,108610.0,108600.0,2.12624696]
[1748018711780,0.2631421,108610.0,108600.0,2.1348376]
[1748018712209,0.0097136,108610.0,108600.0,2.55325286]
[1748018712423,0.00050711,108610.0,108600.0,2.54466222]
[1748018712630,0.20306544,108610.0,108600.0,1.20218]
[1748018712846,0.26306612,108610.0,108600.0,1.86272586]
[1748018713048,0.33835253,108610.0,108600.0,0.30740586]
[1748018713257,0.21259632,108590.0,108580.0,0.01091213]
[1748018713464,0.30114188,108590.0,108580.0,0.67299213]
[1748018713694,0.27159632,108590.0,108580.0,1.93720109]
[1748018713898,0.27159632,108590.0,108580.0,1.96916049]
[1748018713899,0.26159632,108590.0,108580.0,1.96916049]
[1748018714117,0.2523878,108590.0,108580.0,1.97774246]
[1748018714313,0.2523878,108590.0,108580.0,1.96683033]
[1748018714488,0.21080527,108590.0,108580.0,2.17865509]
[1748018714700,0.21080527,108590.0,108580.0,2.18065526]
[1748018714895,0.01841679,108590.0,108580.0,2.19907391]
[1748018715074,0.02762548,108590.0,108580.0,2.20786249]
[1748018715282,0.1841773,108600.0,108590.0,0.2544878]
[1748018715283,0.21180117,108600.0,108590.0,0.2544878]
[1748018715505,0.21180117,108600.0,108590.0,0.71389676]
[1748018715746,0.1933854,108600.0,108590.0,0.71389693]
[1748018715951,0.1933878,108590.0,108580.0,1.30625804]
[1748018716123,0.1933878,108590.0,108580.0,1.96529804]
[1748018716306,0.1933878,108590.0,108580.0,1.95550836]
[1748018716636,0.1933878,108590.0,108580.0,1.29246836]
[1748018716863,0.2533878,108590.0,108580.0,0.78053896]
[1748018717081,0.35293336,108590.0,108580.0,1.44257896]
[1748018717510,0.35293336,108590.0,108580.0,1.44357896]
[1748018718107,0.36747421,108590.0,108580.0,1.44357896]
[1748018718512,0.36747421,108590.0,108580.0,1.44457896]
[1748018720733,0.34293336,108590.0,108580.0,1.93698792]
[1748018720948,0.34293336,108590.0,108580.0,1.97028792]
[1748018721230,0.01841747,108590.0,108580.0,2.1544839]
[1748018721404,0.1841773,108600.0,108590.0,0.59978788]
[1748018721617,0.2441773,108600.0,108590.0,1.05919693]
[1748018721826,0.20257766,108600.0,108590.0,1.0776144]
[1748018722034,0.02762302,108600.0,108590.0,1.09540231]
[1748018722234,0.02762302,108600.0,108590.0,1.49540231]
[1748018722439,0.03683103,108600.0,108590.0,1.49540231]
[1748018722637,0.02762293,108600.0,108590.0,1.48682275]
[1748018722839,0.03683086,108600.0,108590.0,1.48682275]
[1748018723281,0.20306629,108610.0,108600.0,0.60657783]
[1748018723478,0.01892119,108610.0,108600.0,1.73719438]
[1748018723632,0.20306629,108610.0,108600.0,1.73719438]
[1748018723861,0.21227354,108610.0,108600.0,1.38337007]
[1748018724071,0.27227354,108610.0,108600.0,0.804]
[1748018724264,0.26385946,108610.0,108600.0,1.46696]
[1748018724466,0.00050711,108610.0,108600.0,1.66953766]
[1748018724651,0.01892102,108610.0,108600.0,1.67874516]
[1748018725841,0.02812776,108610.0,108600.0,1.67874516]
[1748018725981,0.03733417,108610.0,108600.0,1.67874516]
[1748018726415,0.04654125,108610.0,108600.0,1.67874516]
[1748018726767,0.22148029,108610.0,108600.0,0.99836999]
[1748018726942,0.19385938,108610.0,108600.0,0.805]
[1748018727143,0.35340494,108610.0,108600.0,0.741]
[1748018727309,0.35340494,108610.0,108600.0,1.40388]
[1748018727679,0.35340494,108610.0,108600.0,1.41245384]
[1748018728919,0.26385938,108610.0,108600.0,1.9381628]
[1748018729118,0.26306629,108610.0,108600.0,2.13153296]
[1748018729528,0.21227354,108610.0,108600.0,2.14894873]
[1748018729773,0.20306663,108610.0,108600.0,2.12195912]
[1748018730522,0.20306663,108610.0,108600.0,2.13116713]
[1748018731018,0.19385912,108610.0,108600.0,2.14958248]
[1748018731244,0.20306637,108610.0,108600.0,2.14958248]
[1748018731431,0.00050711,108610.0,108600.0,2.15878998]
[1748018731632,0.01892034,108610.0,108600.0,2.15878998]
[1748018731858,0.02812725,108610.0,108600.0,2.15878998]
[1748018732062,0.03733433,108610.0,108600.0,2.16757358]
[1748018732264,0.02812725,108610.0,108600.0,2.16757358]
[1748018734150,0.00050711,108610.0,108600.0,2.16757358]
[1748018734360,0.00050711,108610.0,108600.0,2.25711914]
[1748018734756,0.0097136,108610.0,108600.0,2.25711914]
[1748018736014,0.01892017,108610.0,108600.0,2.25711914]
[1748018736219,0.028127,108610.0,108600.0,2.25711914]
[1748018736424,0.028127,108610.0,108600.0,2.53496358]
[1748018736923,0.03733374,108610.0,108600.0,2.53496358]
[1748018737498,0.03733374,108610.0,108600.0,1.87400358]
[1748018737719,0.03733374,108610.0,108600.0,2.53496358]
[1748018738122,0.03733374,108610.0,108600.0,1.87400358]
[1748018738281,0.03704759,108610.0,108600.0,2.53496358]
[1748018738487,0.03704751,108610.0,108600.0,2.53496358]
[1748018739012,0.00022096,108610.0,108600.0,2.53496358]
[1748018739179,0.18422248,108630.0,108620.0,0.25543455]
[1748018739516,0.21197229,108630.0,108620.0,1.78228983]
[1748018739854,0.21276733,108630.0,108620.0,1.45824]
[1748018740054,0.21276733,108630.0,108620.0,1.64236815]
[1748018740313,0.21276733,108630.0,108620.0,1.66035798]
[1748018740522,0.00945066,108630.0,108620.0,2.54027881]
[1748018740704,0.01856187,108630.0,108620.0,2.54027881]
[1748018741368,0.00935699,108630.0,108620.0,2.54027881]
[1748018741587,0.01135699,108630.0,108620.0,2.54027881]
[1748018741801,0.22397229,108630.0,108620.0,2.83723309]
[1748018742026,0.03986109,108630.0,108620.0,2.83723309]
[1748018742241,0.02256204,108630.0,108620.0,2.91714496]
[1748018742464,0.00415203,108630.0,108620.0,2.91714496]
[1748018742723,0.02256187,108630.0,108620.0,2.91714496]
[1748018743056,0.03176709,108630.0,108620.0,2.91714496]
[1748018744844,0.02256178,108630.0,108620.0,2.91714496]
[1748018745195,0.03176691,108630.0,108620.0,2.91714496]
[1748018745389,0.04097221,108630.0,108620.0,2.91714496]
[1748018745595,0.03176691,108630.0,108620.0,2.91714496]
[1748018745799,0.02256178,108630.0,108620.0,2.91714496]
[1748018745977,0.04097213,108630.0,108620.0,2.91714496]
[1748018746423,0.04097205,108630.0,108620.0,2.91714496]
[1748018746623,0.04097256,108630.0,108620.0,2.457696]
[1748018746823,0.00415203,108630.0,108620.0,2.91710496]
[1748018747024,0.01335682,108630.0,108620.0,2.91710496]
[1748018747225,0.03176683,108630.0,108620.0,2.91710496]
[1748018747433,0.00415203,108630.0,108620.0,2.91710496]
[1748018747636,0.02256204,108630.0,108620.0,2.91710496]
[1748018748390,0.03176726,108630.0,108620.0,2.91710496]
[1748018748524,0.02256204,108630.0,108620.0,2.91710496]
[1748018749509,0.03176726,108630.0,108620.0,2.91710496]
[1748018750061,0.02256204,108630.0,108620.0,2.91710496]
[1748018750253,0.2250841,108630.0,108620.0,2.90789915]
[1748018750457,0.2250841,108630.0,108620.0,2.85560504]
[1748018750704,0.04097273,108630.0,108620.0,2.86481085]
[1748018750907,0.03176734,108630.0,108620.0,2.86481085]
[1748018751064,0.02256204,108630.0,108620.0,2.86481085]
[1748018751272,0.02256204,108630.0,108620.0,2.89771085]
[1748018751501,0.02256204,108630.0,108620.0,2.93051085]
[1748018751727,0.01335691,108630.0,108620.0,2.93051085]
[1748018751937,0.02256204,108630.0,108620.0,2.93051085]
[1748018752764,0.02256204,108630.0,108620.0,2.94142298]
[1748018752920,0.03176734,108630.0,108620.0,2.94142298]
[1748018753131,0.04097273,108630.0,108620.0,2.94142298]
[1748018753493,0.03176734,108630.0,108620.0,2.94142298]
[1748018753716,0.01335691,108630.0,108620.0,2.94142298]
[1748018754006,0.02256196,108630.0,108620.0,2.94142298]
[1748018754466,0.03176709,108630.0,108620.0,2.94242298]
[1748018754669,0.02976709,108630.0,108620.0,2.94242298]
[1748018754968,0.00015203,108630.0,108620.0,2.94242298]
[1748018755190,0.00935691,108630.0,108620.0,2.94242298]
[1748018755419,0.027767,108630.0,108620.0,2.94242298]
[1748018756193,0.0369723,108630.0,108620.0,2.94238298]
[1748018756418,0.22108359,108630.0,108620.0,2.94238298]
[1748018756668,0.21267409,108630.0,108620.0,1.98568469]
[1748018756926,0.3397605,108630.0,108620.0,1.57119573]
[1748018757164,0.3724605,108630.0,108620.0,1.44707573]
[1748018757381,0.3724605,108630.0,108620.0,1.76738]
[1748018757583,0.3724605,108630.0,108620.0,1.82738]
[1748018757804,0.3724605,108630.0,108620.0,2.16738]
[1748018760388,0.3067605,108630.0,108620.0,2.62678896]
[1748018760602,0.29221965,108630.0,108620.0,2.15932343]
[1748018760804,0.30221965,108630.0,108620.0,2.85246343]
[1748018761007,0.29231323,108630.0,108620.0,2.66833536]
[1748018761211,0.29301426,108630.0,108620.0,2.69032896]
[1748018761414,0.29310784,108630.0,108620.0,2.69032896]
[1748018761832,0.29301426,108630.0,108620.0,2.62682896]
[1748018762083,0.29310784,108630.0,108620.0,2.62682896]
[1748018762518,0.29301426,108630.0,108620.0,2.63563719]
[1748018762946,0.29301426,108630.0,108620.0,2.17622823]
[1748018763618,0.28301426,108630.0,108620.0,1.51538823]
[1748018763847,0.28301426,108630.0,108620.0,2.17542823]
[1748018764066,0.28301426,108630.0,108620.0,2.63483719]
[1748018765190,0.29310784,108630.0,108620.0,2.62602896]
[1748018765425,0.00935699,108630.0,108620.0,2.8981753]
[1748018765665,0.01856212,108630.0,108620.0,2.8981753]
[1748018765876,0.0186557,108630.0,108620.0,2.8981753]
[1748018766079,0.00945057,108630.0,108620.0,2.8981753]
[1748018766289,0.00015203,108630.0,108620.0,2.8981753]
[1748018766500,0.00935691,108630.0,108620.0,2.8981753]
[1748018766952,0.01856187,108630.0,108620.0,2.8981753]
[1748018767242,0.00015203,108630.0,108620.0,2.8981753]
[1748018767504,0.19413758,108660.0,108650.0,0.34]
[1748018767716,0.28368314,108660.0,108650.0,1.45944896]
[1748018767920,0.28368314,108660.0,108650.0,1.82759896]
[1748018768351,0.28368314,108660.0,108650.0,2.22759896]
[1748018768772,0.28568314,108660.0,108650.0,2.22759896]
[1748018768985,0.29022399,108660.0,108650.0,1.10815]
[1748018769198,0.35322399,108660.0,108650.0,0.70815]
[1748018769414,0.35322399,108660.0,108650.0,1.36815]
[1748018769802,0.35322399,108660.0,108650.0,1.76815]
[1748018770015,0.19613758,108660.0,108650.0,1.82755896]
[1748018770433,0.19813758,108660.0,108650.0,1.82755896]
[1748018770654,0.19813758,108660.0,108650.0,2.22755896]
[1748018770855,0.19813758,108660.0,108650.0,2.26005896]
[1748018771319,0.19813758,108660.0,108650.0,2.29025896]
[1748018771512,0.22566881,108660.0,108650.0,2.48353996]
[1748018771746,0.01320242,108660.0,108650.0,2.50194675]
[1748018772029,0.22487099,108660.0,108650.0,2.49274348]
[1748018772474,0.21566857,108660.0,108650.0,2.49274348]
[1748018772695,0.0316082,108660.0,108650.0,2.50194683]
[1748018772912,0.22487158,108660.0,108650.0,2.492338]
[1748018773127,0.21566907,108660.0,108650.0,2.492338]
[1748018773347,0.21566907,108660.0,108650.0,2.51074496]
[1748018773568,0.02240569,108660.0,108650.0,2.5199484]
[1748018773797,0.21566907,108660.0,108650.0,2.17074513]
[1748018774028,0.02240527,108660.0,108650.0,2.1799484]
[1748018774254,0.03160811,108660.0,108650.0,2.1799484]
[1748018774511,0.22487141,108660.0,108650.0,2.1799484]
[1748018774720,0.23407442,108660.0,108650.0,2.1799484]
[1748018774933,0.23207442,108660.0,108650.0,2.1799484]
[1748018775773,0.23207442,108660.0,108650.0,2.51074513]
[1748018776004,0.22287191,108660.0,108650.0,1.41269438]
[1748018776235,0.21246631,108660.0,108650.0,1.55050542]
[1748018776463,0.29201187,108660.0,108650.0,1.21050542]
[1748018776897,0.29201187,108660.0,108650.0,1.55050542]
[1748018777378,0.29201187,108660.0,108650.0,1.54170738]
[1748018777827,0.30201187,108660.0,108650.0,2.06501634]
[1748018777960,0.21246631,108660.0,108650.0,2.06501634]
[1748018778158,0.20335696,108660.0,108650.0,2.06501634]
[1748018779212,0.20326338,108660.0,108650.0,2.24909365]
[1748018779422,0.20326338,108660.0,108650.0,2.06501634]
[1748018780362,0.20335696,108660.0,108650.0,2.06501634]
[1748018781763,0.20326338,108660.0,108650.0,2.06501634]
[1748018781922,0.20326338,108660.0,108650.0,1.72527634]
[1748018782129,0.20326338,108660.0,108650.0,2.00111634]
[1748018782564,0.20326338,108660.0,108650.0,1.34119634]
[1748018782733,0.20326338,108660.0,108650.0,2.00111634]
[1748018782980,0.20326338,108660.0,108650.0,2.03371634]
[1748018783197,0.18415395,108660.0,108650.0,2.24989365]
[1748018783412,0.21166865,108660.0,108650.0,2.26830078]
[1748018783637,0.21166865,108660.0,108650.0,2.26830095]
[1748018783864,0.19335696,108660.0,108650.0,2.06581634]
[1748018784081,0.19326338,108660.0,108650.0,2.25909734]
[1748018784305,0.19326338,108660.0,108650.0,2.24989365]
[1748018784526,0.20335696,108660.0,108650.0,2.00211634]
[1748018784743,0.20335696,108660.0,108650.0,1.34219634]
[1748018784981,0.33024979,108660.0,108650.0,0.14278738]
[1748018785235,0.41359045,108660.0,108650.0,0.41862738]
[1748018786553,0.36214979,108660.0,108650.0,0.14278738]
[1748018786780,0.36214979,108660.0,108650.0,0.41862738]
[1748018787463,0.29734979,108660.0,108650.0,0.41862738]
[1748018787685,0.30034979,108660.0,108650.0,0.41862738]
[1748018787863,0.30334979,108660.0,108650.0,0.41862738]
[1748018788619,0.36864979,108660.0,108650.0,0.14278738]
[1748018788822,0.36864979,108660.0,108650.0,0.80270738]
[1748018789007,0.30334979,108660.0,108650.0,0.14278738]
[1748018789251,0.30334979,108660.0,108650.0,0.80270738]
[1748018790318,0.29880894,108660.0,108650.0,1.14270738]
[1748018790518,0.21766857,108660.0,108650.0,1.86800112]
[1748018790743,0.21846606,108660.0,108650.0,1.66551634]
[1748018791150,0.21546606,108660.0,108650.0,1.66551634]
[1748018791550,0.21446606,108660.0,108650.0,1.66551634]
[1748018792139,0.11455964,108660.0,108650.0,1.66551634]
[1748018792368,0.11455964,108660.0,108650.0,2.06551634]
[1748018792889,0.12176257,108660.0,108650.0,2.25879751]
[1748018793090,0.12176257,108660.0,108650.0,2.06551634]
[1748018793942,0.12176257,108660.0,108650.0,2.24959365]
[1748018794437,0.12176257,108660.0,108650.0,2.26759413]
[1748018795364,0.11176257,108660.0,108650.0,2.27679774]
[1748018795584,0.00929625,108660.0,108650.0,2.2952047]
[1748018795794,0.22087123,108660.0,108650.0,2.30440797]
[1748018796013,0.22096481,108660.0,108650.0,2.30440805]
[1748018796469,0.21176239,108660.0,108650.0,2.2952047]
[1748018796908,0.02760844,108660.0,108650.0,2.30440805]
[1748018797115,0.02760844,108660.0,108650.0,2.30440746]
[1748018797354,0.21166881,108660.0,108650.0,2.28600084]
[1748018797569,0.22087182,108660.0,108650.0,2.28600084]
[1748018797781,0.2209654,108660.0,108650.0,2.68320084]
[1748018798008,0.22087182,108660.0,108650.0,2.68320084]
[1748018798223,0.2209654,108660.0,108650.0,2.69240419]
[1748018798432,0.22087182,108660.0,108650.0,2.69240419]
[1748018798612,0.2209654,108660.0,108650.0,2.69240419]
[1748018798816,0.2209654,108660.0,108650.0,2.68320084]
[1748018799027,0.21176273,108660.0,108650.0,2.68320084]
[1748018799435,0.21166915,108660.0,108650.0,2.68320084]
[1748018799646,0.21176273,108660.0,108650.0,2.68320084]
[1748018800656,0.01840577,108660.0,108650.0,2.69240411]
[1748018800895,0.01840543,108660.0,108650.0,2.69240411]
[1748018801112,0.2024658,108660.0,108650.0,2.69240411]
[1748018801265,0.21166881,108660.0,108650.0,2.68320084]
[1748018802694,0.21166881,108660.0,108650.0,2.69240419]
[1748018803319,0.21166881,108660.0,108650.0,2.68320084]
[1748018804096,0.21166881,108660.0,108650.0,2.69240419]
[1748018804340,0.21166881,108660.0,108650.0,1.81159296]
[1748018804555,0.21246622,108660.0,108650.0,2.66379405]
[1748018805367,0.21246622,108660.0,108650.0,2.68220135]
[1748018805819,0.21246622,108660.0,108650.0,2.69140479]
[1748018805972,0.1942504,108670.0,108660.0,0.2570633]
[1748018806180,0.19440232,108670.0,108660.0,0.7256751]
[1748018806382,0.19440232,108670.0,108660.0,0.71647234]
[1748018806621,0.19440232,108670.0,108660.0,1.12526896]
[1748018806822,0.19440232,108670.0,108660.0,1.13447189]
[1748018807191,0.19640232,108670.0,108660.0,1.13447189]
[1748018807390,0.19840232,108670.0,108660.0,1.13447189]
[1748018808876,0.19840232,108670.0,108660.0,1.12526896]
[1748018809046,0.01415192,108670.0,108660.0,1.12526896]
[1748018809247,0.02255532,108670.0,108660.0,1.42867698]
[1748018809448,0.02255523,108670.0,108660.0,2.02315698]
[1748018809711,0.03175723,108670.0,108660.0,2.02315698]
[1748018810245,0.00415192,108670.0,108660.0,2.36315698]
[1748018811054,0.00013619,108680.0,108670.0,0.55164891]
[1748018811265,0.00013619,108680.0,108670.0,1.45683787]
[1748018811473,0.00013619,108680.0,108670.0,2.09453387]
[1748018811688,0.00013619,108680.0,108670.0,3.20274527]
[1748018812098,0.04380492,108700.0,108690.0,0.55160996]
[1748018812305,0.05300438,108700.0,108690.0,2.12971892]
[1748018812552,0.04380492,108700.0,108690.0,2.12971892]
[1748018812748,0.0112074,108700.0,108690.0,2.52971892]
[1748018813170,0.21233553,108730.0,108720.0,0.34]
[1748018813374,0.3023877,108730.0,108720.0,1.45828896]
[1748018813776,0.3023877,108730.0,108720.0,1.85828896]
[1748018814587,0.3023877,108730.0,108720.0,1.85928896]
[1748018815618,0.3023877,108730.0,108720.0,1.85920896]
[1748018815828,0.3023877,108730.0,108720.0,1.22440393]
[1748018816027,0.2923877,108730.0,108720.0,1.42379497]
[1748018816349,0.2943877,108730.0,108720.0,1.42379497]
[1748018816935,0.3043877,108730.0,108720.0,1.88320393]
[1748018817328,0.21484214,108730.0,108720.0,2.12856272]
[1748018817569,0.21484214,108730.0,108720.0,2.13776065]
[1748018817755,0.21484214,108730.0,108720.0,2.1469585]
[1748018817956,0.21484207,108730.0,108720.0,2.17455121]
[1748018818157,0.23323616,108730.0,108720.0,2.16535387]
[1748018818370,0.22413307,108730.0,108720.0,2.16535387]
[1748018818570,0.21493615,108730.0,108720.0,2.15615627]
[1748018818771,0.20564557,108730.0,108720.0,2.13776065]
[1748018818971,0.19654206,108730.0,108720.0,2.1469585]
[1748018819168,0.19654206,108730.0,108720.0,1.94460393]
[1748018819372,0.19654206,108730.0,108720.0,1.95380186]
[1748018819570,0.19654206,108730.0,108720.0,1.96299971]
[1748018819851,0.19644848,108730.0,108720.0,2.13776049]
[1748018820261,0.19544848,108730.0,108720.0,2.13776049]
[1748018820501,0.19444848,108730.0,108720.0,2.13776049]
[1748018820704,0.00970302,108730.0,108720.0,2.13776049]
[1748018820924,0.00050661,108730.0,108720.0,2.15615543]
[1748018821795,0.00050661,108730.0,108720.0,2.27222027]
[1748018821998,0.00050661,108730.0,108720.0,3.65481827]
[1748018822161,0.00050661,108730.0,108720.0,3.56555699]
[1748018822362,0.00919548,108740.0,108730.0,0.61473212]
[1748018822571,0.00919548,108740.0,108730.0,2.53789664]
[1748018822786,0.01854225,108750.0,108740.0,0.61471266]
[1748018822984,0.01854225,108750.0,108740.0,1.74980162]
[1748018823348,0.00015188,108750.0,108740.0,1.74980162]
[1748018823635,0.02773655,108750.0,108740.0,1.74980162]
[1748018823912,0.2208399,108750.0,108740.0,2.05913597]
[1748018824123,0.20245063,108750.0,108740.0,2.71773614]
[1748018824350,0.20245063,108750.0,108740.0,2.72693204]
[1748018824614,0.20245063,108750.0,108740.0,2.71728282]
[1748018824833,0.20245063,108750.0,108740.0,2.73567463]
[1748018825064,0.20245063,108750.0,108740.0,2.72647881]
[1748018825511,0.20245063,108750.0,108740.0,2.73567463]
[1748018825782,0.20325532,108750.0,108740.0,2.52324163]
[1748018826032,0.20425532,108750.0,108740.0,2.71636248]
[1748018826248,0.20425532,108750.0,108740.0,2.70761981]
[1748018826491,0.20425532,108750.0,108740.0,2.72601213]
[1748018826940,0.20425532,108750.0,108740.0,2.71681631]
[1748018827144,0.20425532,108750.0,108740.0,2.06833238]
[1748018827355,0.20425532,108750.0,108740.0,2.72593238]
[1748018828181,0.20425532,108750.0,108740.0,2.06833238]
[1748018828525,0.19505992,108750.0,108740.0,2.69834391]
[1748018828789,0.19505992,108750.0,108740.0,2.72593204]
[1748018829001,0.19505992,108750.0,108740.0,2.71673614]
[1748018829479,0.19505992,108750.0,108740.0,2.71665614]
[1748018829913,0.19505992,108750.0,108740.0,2.72585204]
[1748018830134,0.1951535,108750.0,108740.0,1.79361896]
[1748018830354,0.27469906,108750.0,108740.0,1.79361896]
[1748018830567,0.27469906,108750.0,108740.0,1.99173]
[1748018831318,0.27469906,108750.0,108740.0,1.65173]
[1748018832193,0.02044052,108750.0,108740.0,2.38815188]
[1748018832394,0.01954149,108750.0,108740.0,2.39734753]
[1748018832547,0.03802527,108750.0,108740.0,1.73982753]
[1748018832766,0.03802527,108750.0,108740.0,2.39734753]
[1748018832973,0.02873646,108750.0,108740.0,2.39734753]
[1748018833178,0.23112845,108750.0,108740.0,2.37895614]
[1748018833435,0.20354421,108750.0,108740.0,2.04304391]
[1748018833638,0.20354421,108750.0,108740.0,2.71895622]
[1748018834285,0.20354421,108750.0,108740.0,2.51663896]
[1748018834489,0.20354421,108750.0,108740.0,2.70975998]
[1748018834709,0.2043489,108750.0,108740.0,1.33421]
[1748018834920,0.28389446,108750.0,108740.0,1.99173]
[1748018837880,0.28389446,108750.0,108740.0,2.00047894]
[1748018842410,0.28389446,108750.0,108740.0,2.01139107]
[1748018844326,0.28389446,108750.0,108740.0,2.01239107]
[1748018844532,0.28389446,108750.0,108740.0,1.35487107]
[1748018844684,0.28389446,108750.0,108740.0,2.01235107]
[1748018846899,0.29834173,108750.0,108740.0,1.01487107]
[1748018847105,0.82105069,108750.0,108740.0,1.27235107]
[1748018847320,0.36164173,108750.0,108740.0,1.27235107]
[1748018847535,0.37019509,108750.0,108740.0,1.27235107]
[1748018847933,0.91912556,108750.0,108740.0,0.61487107]
[1748018848197,0.82960405,108750.0,108740.0,0.61487107]
[1748018848415,1.12423869,108750.0,108740.0,0.02066107]
[1748018848633,0.24016187,108740.0,108730.0,0.01458849]
[1748018848853,0.83501639,108740.0,108730.0,0.01458849]
[1748018849329,0.24939492,108720.0,108710.0,0.3968]
[1748018849545,0.79834944,108720.0,108710.0,0.6724]
[1748018849763,0.81034944,108720.0,108710.0,0.6724]
[1748018849985,0.81034944,108720.0,108710.0,0.3968]
[1748018850213,0.22567432,108710.0,108700.0,0.4173801]
[1748018850471,0.31521988,108710.0,108700.0,0.6930201]
[1748018851333,0.29726073,108710.0,108700.0,0.6930201]
[1748018851558,0.29726073,108710.0,108700.0,1.7373217]
[1748018851559,0.29207021,108710.0,108700.0,1.7373217]
[1748018851796,0.28287168,108710.0,108700.0,1.55332906]
[1748018852431,0.28287168,108710.0,108700.0,1.95332906]
[1748018852664,0.28287168,108710.0,108700.0,1.4939201]
[1748018852884,0.28287168,108710.0,108700.0,1.4633201]
[1748018853115,0.28387168,108710.0,108700.0,1.4633201]
[1748018853230,0.29841253,108710.0,108700.0,1.4330201]
[1748018855099,0.29841253,108710.0,108700.0,1.4964201]
[1748018855533,0.28387168,108710.0,108700.0,1.4964201]
[1748018855744,0.29387168,108710.0,108700.0,1.68041274]
[1748018855951,0.29387168,108710.0,108700.0,1.68961237]
[1748018856141,0.29387168,108710.0,108700.0,2.15822087]
[1748018856387,0.20432612,108710.0,108700.0,2.16742016]
[1748018856766,0.20432612,108710.0,108700.0,2.15822087]
[1748018857004,0.20432612,108710.0,108700.0,2.16742033]
[1748018857214,0.20432612,108710.0,108700.0,2.16746033]
[1748018857444,0.20432612,108710.0,108700.0,1.95586906]
[1748018857643,0.19512751,108710.0,108700.0,1.4964601]
[1748018858068,0.27467307,108710.0,108700.0,1.4955801]
[1748018859961,0.27467307,108710.0,108700.0,1.65633538]
[1748018859962,0.18512751,108710.0,108700.0,1.65633538]
[1748018860174,0.18512751,108710.0,108700.0,2.15792046]
[1748018860385,0.19512751,108710.0,108700.0,1.9317517]
[1748018861343,0.19512751,108710.0,108700.0,1.47234274]
[1748018862104,0.19512751,108710.0,108700.0,1.65633538]
[1748018862333,0.19512751,108710.0,108700.0,0.81562274]
[1748018862536,0.19512751,108710.0,108700.0,1.47234274]
[1748018864750,0.0011518,108710.0,108700.0,2.0490974]
[1748018865428,0.0011518,108710.0,108700.0,3.02698012]
[1748018866525,0.0011518,108710.0,108700.0,2.62798012]
[1748018866962,0.0011518,108710.0,108700.0,3.03674077]
[1748018867138,0.0001518,108710.0,108700.0,3.03574077]
[1748018867362,0.0001518,108710.0,108700.0,2.76115977]
[1748018868090,0.0001518,108710.0,108700.0,2.76415977]
[1748018868949,0.0001518,108710.0,108700.0,3.13212977]
[1748018870440,0.30560885,108750.0,108740.0,0.60551701]
[1748018870713,0.31480408,108750.0,108740.0,2.03347699]
[1748018870917,0.30560919,108750.0,108740.0,2.02428134]
[1748018871161,0.30560919,108750.0,108740.0,2.43347724]
[1748018871402,0.30560919,108750.0,108740.0,2.44267298]
[1748018871641,0.30876096,108750.0,108740.0,2.44267298]
[1748018872078,0.05093285,108750.0,108740.0,2.45186863]
[1748018872284,0.23484089,108750.0,108740.0,2.45186863]
[1748018872552,0.02344024,108750.0,108740.0,2.44267306]
[1748018872812,0.01344016,108750.0,108740.0,2.45186871]
[1748018873284,0.02463513,108750.0,108740.0,2.45186871]
[1748018873693,0.02263513,108750.0,108740.0,2.45186871]
[1748018873899,0.2237384,108750.0,108740.0,1.56528416]
[1748018874104,0.20634862,108750.0,108740.0,1.75840535]
[1748018874304,0.20634862,108750.0,108740.0,2.42420151]
[1748018874546,0.20634862,108750.0,108740.0,2.4333975]
[1748018874958,0.19715339,108750.0,108740.0,2.22188416]
[1748018875142,0.19715339,108750.0,108740.0,2.42420134]
[1748018875524,0.19715339,108750.0,108740.0,2.2310804]
[1748018875727,0.19715339,108750.0,108740.0,2.43339758]
[1748018875909,0.19715339,108750.0,108740.0,2.44259357]
[1748018877283,0.01244032,108750.0,108740.0,2.45178888]
[1748018877437,0.02163504,108750.0,108740.0,2.45178888]
[1748018877833,0.0408301,108750.0,108740.0,1.79518888]
[1748018878036,0.23393337,108750.0,108740.0,2.44255323]
[1748018878234,0.23393396,108750.0,108740.0,2.44255323]
[1748018878479,0.22473865,108750.0,108740.0,2.44255289]
[1748018879169,0.22473865,108750.0,108740.0,2.43335707]
[1748018879583,0.04083061,108750.0,108740.0,2.43335707]
[1748018879798,0.04083061,108750.0,108740.0,2.44255272]
[1748018879799,0.04083018,108750.0,108740.0,2.44255272]
[1748018880000,0.0408301,108750.0,108740.0,2.44255272]
[1748018880208,0.00324535,108750.0,108740.0,2.44255272]
[1748018880428,0.01243999,108750.0,108740.0,2.80771688]
[1748018880646,0.02163488,108750.0,108740.0,2.80771688]
[1748018880828,0.03082968,108750.0,108740.0,2.44255272]
[1748018881266,0.00324535,108750.0,108740.0,2.44255272]
[1748018881444,0.01244007,108750.0,108740.0,2.80771688]
[1748018881650,0.02154138,108750.0,108740.0,2.44255272]
[1748018881876,0.00315177,108750.0,108740.0,2.80771688]
[1748018882115,0.00315177,108750.0,108740.0,3.25672144]